[Event "Titled Tuesday Blitz November 15 Late 2022"]
[White "Kleiman, Jake"]
[Black "Sjugirov, Sanan"]
[WhiteFideId "2020041"]
[BlackFideId "4189302"]
[WhiteElo "2648"]
[BlackElo "2611"]
[Result "0-1"]
[Round "05"]
[TimeControl "180+1"]
[Date "2022.11.16"]
[WhiteClock "0:00:10"]
[BlackClock "0:00:05"]

1. e4 {[%clk 0:03:00]}  c5 {[%clk 0:02:58]} 2. c3 {[%clk 0:03:01]}  Nf6 {[%clk 0:02:57]} 3. e5 {[%clk 0:03:01]}  Nd5 {[%clk 0:02:58]} 4. Bc4 {[%clk 0:03:02]}  e6 {[%clk 0:02:58]} 5. Nf3 {[%clk 0:03:01]}  d6 {[%clk 0:02:57]} 6. d4 {[%clk 0:03:02]}  cxd4 {[%clk 0:02:57]} 7. cxd4 {[%clk 0:03:03]}  Be7 {[%clk 0:02:57]} 8. O-O {[%clk 0:03:03]}  O-O {[%clk 0:02:58]} 9. Qe2 {[%clk 0:03:04]}  a6 {[%clk 0:02:58]} 10. a3 {[%clk 0:03:03]}  b5 {[%clk 0:02:57]} 11. Bd3 {[%clk 0:03:03]}  Bb7 {[%clk 0:02:55]} 12. Bd2 {[%clk 0:03:03]}  Nd7 {[%clk 0:02:53]} 13. Nc3 {[%clk 0:03:03]}  dxe5 {[%clk 0:02:49]} 14. dxe5 {[%clk 0:03:00]}  Nxc3 {[%clk 0:02:40]} 15. Bxc3 {[%clk 0:03:00]}  Qb8 {[%clk 0:02:19]} 16. Rfe1 {[%clk 0:02:42]}  Nb6 {[%clk 0:02:15]} 17. Rad1 {[%clk 0:02:37]}  Nd5 {[%clk 0:02:04]} 18. Bd2 {[%clk 0:02:37]}  g6 {[%clk 0:01:37]} 19. h4 {[%clk 0:02:34]}  Rd8 {[%clk 0:01:14]} 20. h5 {[%clk 0:02:29]}  Rd7 {[%clk 0:01:07]} 21. Ng5 {[%clk 0:02:14]}  Bxg5 {[%clk 0:00:37]} 22. Bxg5 {[%clk 0:02:13]}  Qf8 {[%clk 0:00:38]} 23. Qg4 {[%clk 0:02:00]}  Re8 {[%clk 0:00:27]} 24. Qh4 {[%clk 0:01:44]}  Rc7 {[%clk 0:00:17]} 25. Rc1 {[%clk 0:01:11]}  Rec8 {[%clk 0:00:17]} 26. Rxc7 {[%clk 0:01:09]}  Rxc7 {[%clk 0:00:17]} 27. hxg6 {[%clk 0:01:06]}  fxg6 {[%clk 0:00:17]} 28. Qg4 {[%clk 0:00:57]}  Qf7 {[%clk 0:00:17]} 29. Bh6 {[%clk 0:00:48]}  Ne7 {[%clk 0:00:16]} 30. Qh4 {[%clk 0:00:40]}  Rd7 {[%clk 0:00:15]} 31. Bb1 {[%clk 0:00:38]}  Nf5 {[%clk 0:00:13]} 32. Bxf5 {[%clk 0:00:38]}  Qxf5 {[%clk 0:00:14]} 33. Bg5 {[%clk 0:00:32]}  h5 {[%clk 0:00:13]} 34. Qg3 {[%clk 0:00:28]}  Qg4 {[%clk 0:00:09]} 35. Qxg4 {[%clk 0:00:26]}  hxg4 {[%clk 0:00:10]} 36. Rc1 {[%clk 0:00:26]}  Kf7 {[%clk 0:00:09]} 37. Kf1 {[%clk 0:00:24]}  a5 {[%clk 0:00:07]} 38. Be3 {[%clk 0:00:20]}  a4 {[%clk 0:00:07]} 39. Bg5 {[%clk 0:00:20]}  Kg7 {[%clk 0:00:05]} 40. Bf4 {[%clk 0:00:18]}  g5 {[%clk 0:00:04]} 41. Bxg5 {[%clk 0:00:17]}  Kg6 {[%clk 0:00:05]} 42. Be3 {[%clk 0:00:17]}  Kf5 {[%clk 0:00:06]} 43. g3 {[%clk 0:00:14]}  Bd5 {[%clk 0:00:05]} 44. Ke1 {[%clk 0:00:14]}  Bc4 {[%clk 0:00:05]} 45. Bf4 {[%clk 0:00:13]}  Ke4 {[%clk 0:00:05]} 46. Rd1 {[%clk 0:00:13]}  Bd3 {[%clk 0:00:05]} 47. Kd2 {[%clk 0:00:12]}  Bc4+ {[%clk 0:00:04]} 48. Ke1 {[%clk 0:00:11]}  Rh7 {[%clk 0:00:04]} 49. Kd2 {[%clk 0:00:10]}  Kf3 {[%clk 0:00:04]} 50. Be3 {[%clk 0:00:10]}  Rd7+ {[%clk 0:00:04]} 51. Kc1 {[%clk 0:00:10]}  Bd3 {[%clk 0:00:03]} 52. Kd2 {[%clk 0:00:09]}  Be2+ {[%clk 0:00:03]} 53. Kc3 {[%clk 0:00:10]}  Bxd1 {[%clk 0:00:03]} 54. Kb4 {[%clk 0:00:11]}  Be2 {[%clk 0:00:04]} 55. Kc5 {[%clk 0:00:10]}  Bc4 {[%clk 0:00:04]} 56. Kc6 {[%clk 0:00:10]}  Rd3 {[%clk 0:00:05]} 0-1


[Site "https://www.chess.com"]

[Event "Titled Tuesday Blitz November 15 Late 2022"]
[White "Koutlas, Nikolaos"]
[Black "Makridis, Dimitrios"]
[WhiteFideId "25827138"]
[BlackFideId "25864475"]
[WhiteElo "2167"]
[BlackElo "2272"]
[Result "0-1"]
[Round "05"]
[TimeControl "180+1"]
[Date "2022.11.16"]
[WhiteClock "0:00:06"]
[BlackClock "0:00:08"]

1. Nf3 {[%clk 0:03:00]}  d5 {[%clk 0:02:56]} 2. g3 {[%clk 0:02:59]}  Nf6 {[%clk 0:02:55]} 3. Bg2 {[%clk 0:02:59]}  c6 {[%clk 0:02:55]} 4. O-O {[%clk 0:02:59]}  Bf5 {[%clk 0:02:52]} 5. d3 {[%clk 0:02:57]}  Nbd7 {[%clk 0:02:53]} 6. Nbd2 {[%clk 0:02:56]}  e6 {[%clk 0:02:39]} 7. c4 {[%clk 0:02:51]}  Be7 {[%clk 0:02:36]} 8. Re1 {[%clk 0:02:50]}  O-O {[%clk 0:02:36]} 9. e4 {[%clk 0:02:50]}  dxe4 {[%clk 0:02:33]} 10. dxe4 {[%clk 0:02:50]}  Bg6 {[%clk 0:02:34]} 11. e5 {[%clk 0:02:47]}  Ne8 {[%clk 0:02:30]} 12. Nb3 {[%clk 0:02:39]}  a5 {[%clk 0:02:29]} 13. a4 {[%clk 0:02:18]}  Nc7 {[%clk 0:02:21]} 14. Be3 {[%clk 0:02:07]}  Na6 {[%clk 0:01:28]} 15. Nxa5 {[%clk 0:02:03]}  Bb4 {[%clk 0:01:27]} 16. Nxb7 {[%clk 0:01:52]}  Qc7 {[%clk 0:01:26]} 17. Nd6 {[%clk 0:01:48]}  Bxe1 {[%clk 0:01:26]} 18. Qxe1 {[%clk 0:01:46]}  Rfb8 {[%clk 0:01:22]} 19. Bd4 {[%clk 0:01:38]}  Nb4 {[%clk 0:01:18]} 20. Nb5 {[%clk 0:01:21]}  cxb5 {[%clk 0:01:10]} 21. Qxb4 {[%clk 0:01:20]}  bxc4 {[%clk 0:01:06]} 22. Qd2 {[%clk 0:01:06]}  Be4 {[%clk 0:01:04]} 23. Bc3 {[%clk 0:00:59]}  Nc5 {[%clk 0:01:00]} 24. Qd4 {[%clk 0:00:45]}  Qc6 {[%clk 0:00:37]} 25. Qxc4 {[%clk 0:00:38]}  Qd5 {[%clk 0:00:19]} 26. Qxd5 {[%clk 0:00:25]}  Bxd5 {[%clk 0:00:20]} 27. Nd4 {[%clk 0:00:20]}  Bxg2 {[%clk 0:00:19]} 28. Kxg2 {[%clk 0:00:20]}  Nxa4 {[%clk 0:00:17]} 29. Nc6 {[%clk 0:00:18]}  Re8 {[%clk 0:00:17]} 30. Bd4 {[%clk 0:00:13]}  Nb6 {[%clk 0:00:09]} 31. Rc1 {[%clk 0:00:10]}  Nd5 {[%clk 0:00:08]} 32. b4 {[%clk 0:00:10]}  h5 {[%clk 0:00:06]} 33. Bc5 {[%clk 0:00:07]}  Ra3 {[%clk 0:00:05]} 34. Rb1 {[%clk 0:00:04]}  Nc3 {[%clk 0:00:03]} 35. Rb2 {[%clk 0:00:03]}  Nb5 {[%clk 0:00:04]} 36. Nd4 {[%clk 0:00:02]}  Nxd4 {[%clk 0:00:04]} 37. Bxd4 {[%clk 0:00:03]}  Rb8 {[%clk 0:00:04]} 38. Bc5 {[%clk 0:00:03]}  g6 {[%clk 0:00:04]} 39. Bd6 {[%clk 0:00:04]}  Rb5 {[%clk 0:00:04]} 40. Rc2 {[%clk 0:00:05]}  Kg7 {[%clk 0:00:04]} 41. Rc8 {[%clk 0:00:05]}  Rb3 {[%clk 0:00:04]} 42. Bf8+ {[%clk 0:00:05]}  Kh7 {[%clk 0:00:04]} 43. Be7 {[%clk 0:00:06]}  R3xb4 {[%clk 0:00:04]} 44. Bf6 {[%clk 0:00:06]}  Rb8 {[%clk 0:00:04]} 45. Rc7 {[%clk 0:00:05]}  R4b7 {[%clk 0:00:04]} 46. Rc4 {[%clk 0:00:05]}  Kg8 {[%clk 0:00:04]} 47. h4 {[%clk 0:00:04]}  Ra7 {[%clk 0:00:04]} 48. g4 {[%clk 0:00:05]}  Raa8 {[%clk 0:00:05]} 49. gxh5 {[%clk 0:00:05]}  gxh5 {[%clk 0:00:05]} 50. Rc3 {[%clk 0:00:06]}  Rb4 {[%clk 0:00:05]} 51. Rd3 {[%clk 0:00:06]}  Rg4+ {[%clk 0:00:06]} 52. Kh3 {[%clk 0:00:06]}  Kh7 {[%clk 0:00:06]} 53. f3 {[%clk 0:00:04]}  Rg1 {[%clk 0:00:06]} 54. Rd7 {[%clk 0:00:04]}  Kg6 {[%clk 0:00:06]} 55. Rd2 {[%clk 0:00:05]}  Raa1 {[%clk 0:00:06]} 56. Bg5 {[%clk 0:00:03]}  Rh1+ {[%clk 0:00:06]} 57. Kg3 {[%clk 0:00:03]}  Rag1+ {[%clk 0:00:06]} 58. Kf4 {[%clk 0:00:04]}  Rd1 {[%clk 0:00:05]} 59. Rc2 {[%clk 0:00:04]}  Rd4+ {[%clk 0:00:05]} 60. Ke3 {[%clk 0:00:03]}  Rhd1 {[%clk 0:00:06]} 61. Rc8 {[%clk 0:00:03]}  Kf5 {[%clk 0:00:06]} 62. Kf2 {[%clk 0:00:03]}  Rb1 {[%clk 0:00:05]} 63. Kg3 {[%clk 0:00:04]}  Rdd1 {[%clk 0:00:05]} 64. Rf8 {[%clk 0:00:04]}  Kg6 {[%clk 0:00:05]} 65. Rg8+ {[%clk 0:00:04]}  Kf5 {[%clk 0:00:05]} 66. Rf8 {[%clk 0:00:04]}  Kxe5 {[%clk 0:00:05]} 67. Rxf7 {[%clk 0:00:04]}  Rg1+ {[%clk 0:00:06]} 68. Kf2 {[%clk 0:00:04]}  Rh1 {[%clk 0:00:06]} 69. Ke3 {[%clk 0:00:04]}  Rb3+ {[%clk 0:00:06]} 70. Ke2 {[%clk 0:00:03]}  Rh2+ {[%clk 0:00:06]} 71. Kd1 {[%clk 0:00:03]}  Rb1+ {[%clk 0:00:05]} 72. Bc1 {[%clk 0:00:04]}  Rh1+ {[%clk 0:00:06]} 73. Kc2 {[%clk 0:00:05]}  Rhxc1+ {[%clk 0:00:07]} 74. Kd2 {[%clk 0:00:05]}  Kd5 {[%clk 0:00:08]} 75. Rd7+ {[%clk 0:00:05]}  Ke5 {[%clk 0:00:08]} 76. Rf7 {[%clk 0:00:05]}  Rh1 {[%clk 0:00:08]} 77. Ke3 {[%clk 0:00:05]}  Rb3+ {[%clk 0:00:08]} 78. Kf2 {[%clk 0:00:05]}  Rh2+ {[%clk 0:00:07]} 79. Kg3 {[%clk 0:00:06]}  Rc2 {[%clk 0:00:08]} 0-1


[Site "https://www.chess.com"]

[Event "Titled Tuesday Blitz November 15 Late 2022"]
[White "Leiva, Gianmarco"]
[Black "Santos Flores, Alberto"]
[WhiteFideId "3804399"]
[BlackFideId "3601234"]
[WhiteElo "2286"]
[BlackElo "2235"]
[Result "1/2-1/2"]
[Round "05"]
[TimeControl "180+1"]
[Date "2022.11.16"]
[WhiteClock "0:00:03"]
[BlackClock "0:00:10"]

1. e4 {[%clk 0:02:54]}  c5 {[%clk 0:02:57]} 2. Nf3 {[%clk 0:02:55]}  Nc6 {[%clk 0:02:57]} 3. Bb5 {[%clk 0:02:54]}  g6 {[%clk 0:02:57]} 4. O-O {[%clk 0:02:55]}  Bg7 {[%clk 0:02:57]} 5. Re1 {[%clk 0:02:55]}  Nf6 {[%clk 0:02:57]} 6. c3 {[%clk 0:02:52]}  O-O {[%clk 0:02:56]} 7. d4 {[%clk 0:02:51]}  cxd4 {[%clk 0:02:57]} 8. cxd4 {[%clk 0:02:51]}  d5 {[%clk 0:02:57]} 9. e5 {[%clk 0:02:48]}  Ne4 {[%clk 0:02:57]} 10. Nc3 {[%clk 0:02:49]}  Nxc3 {[%clk 0:02:58]} 11. bxc3 {[%clk 0:02:49]}  Bg4 {[%clk 0:02:58]} 12. h3 {[%clk 0:02:43]}  Bxf3 {[%clk 0:02:58]} 13. Qxf3 {[%clk 0:02:44]}  e6 {[%clk 0:02:58]} 14. Rb1 {[%clk 0:02:30]}  Qd7 {[%clk 0:02:38]} 15. h4 {[%clk 0:02:20]}  a6 {[%clk 0:02:38]} 16. Bd3 {[%clk 0:02:18]}  Rac8 {[%clk 0:02:28]} 17. h5 {[%clk 0:02:17]}  Na5 {[%clk 0:02:23]} 18. h6 {[%clk 0:02:16]}  Bh8 {[%clk 0:02:22]} 19. Bd2 {[%clk 0:02:15]}  Nc4 {[%clk 0:02:21]} 20. Bg5 {[%clk 0:02:15]}  f6 {[%clk 0:02:04]} 21. exf6 {[%clk 0:02:15]}  Bxf6 {[%clk 0:02:04]} 22. Bxf6 {[%clk 0:02:16]}  Nd2 {[%clk 0:02:04]} 23. Qg4 {[%clk 0:01:43]}  Rxf6 {[%clk 0:01:31]} 24. Rb2 {[%clk 0:01:39]}  Nc4 {[%clk 0:01:26]} 25. Rbe2 {[%clk 0:01:38]}  Re8 {[%clk 0:01:18]} 26. Qg5 {[%clk 0:01:35]}  Rf7 {[%clk 0:01:11]} 27. Bxc4 {[%clk 0:01:17]}  dxc4 {[%clk 0:01:11]} 28. d5 {[%clk 0:01:10]}  Rfe7 {[%clk 0:01:02]} 29. Re5 {[%clk 0:01:07]}  b5 {[%clk 0:00:30]} 30. Qh4 {[%clk 0:00:53]}  Kf7 {[%clk 0:00:27]} 31. Qf4+ {[%clk 0:00:45]}  Kg8 {[%clk 0:00:27]} 32. Qe4 {[%clk 0:00:22]}  Kf7 {[%clk 0:00:26]} 33. Qf3+ {[%clk 0:00:22]}  Kg8 {[%clk 0:00:25]} 34. Qg4 {[%clk 0:00:20]}  Kf7 {[%clk 0:00:21]} 35. R1e3 {[%clk 0:00:19]}  Kg8 {[%clk 0:00:17]} 36. Rxe6 {[%clk 0:00:12]}  Rxe6 {[%clk 0:00:16]} 37. dxe6 {[%clk 0:00:13]}  Qd6 {[%clk 0:00:14]} 38. g3 {[%clk 0:00:08]}  Qf8 {[%clk 0:00:11]} 39. Qd4 {[%clk 0:00:07]}  Qxh6 {[%clk 0:00:10]} 40. Qd7 {[%clk 0:00:07]}  Qf8 {[%clk 0:00:10]} 41. e7 {[%clk 0:00:05]}  Qf7 {[%clk 0:00:09]} 42. Rf3 {[%clk 0:00:05]}  Qxe7 {[%clk 0:00:09]} 43. Qd5+ {[%clk 0:00:05]}  Qe6 {[%clk 0:00:09]} 44. Qb7 {[%clk 0:00:04]}  Qe1+ {[%clk 0:00:03]} 45. Kg2 {[%clk 0:00:04]}  Qe4 {[%clk 0:00:03]} 46. Qf7+ {[%clk 0:00:04]}  Kh8 {[%clk 0:00:04]} 47. Kh2 {[%clk 0:00:04]}  Qe7 {[%clk 0:00:03]} 48. Qf4 {[%clk 0:00:02]}  Kg8 {[%clk 0:00:03]} 49. Qd4 {[%clk 0:00:01]}  Rf8 {[%clk 0:00:03]} 50. Qd5+ {[%clk 0:00:02]}  Kg7 {[%clk 0:00:02]} 51. Re3 {[%clk 0:00:02]}  Qf7 {[%clk 0:00:02]} 52. Qxf7+ {[%clk 0:00:02]}  Rxf7 {[%clk 0:00:03]} 53. Kg2 {[%clk 0:00:02]}  Rb7 {[%clk 0:00:01]} 54. Re6 {[%clk 0:00:03]}  a5 {[%clk 0:00:02]} 55. Ra6 {[%clk 0:00:03]}  b4 {[%clk 0:00:03]} 56. Rxa5 {[%clk 0:00:04]}  bxc3 {[%clk 0:00:03]} 57. Ra3 {[%clk 0:00:05]}  c2 {[%clk 0:00:03]} 58. Rc3 {[%clk 0:00:05]}  Rb2 {[%clk 0:00:04]} 59. a4 {[%clk 0:00:05]}  Ra2 {[%clk 0:00:04]} 60. Rxc4 {[%clk 0:00:05]}  Kf6 {[%clk 0:00:05]} 61. a5 {[%clk 0:00:05]}  Rxa5 {[%clk 0:00:05]} 62. Rxc2 {[%clk 0:00:05]}  Re5 {[%clk 0:00:06]} 63. Rc7 {[%clk 0:00:05]}  Re6 {[%clk 0:00:06]} 64. Rxh7 {[%clk 0:00:05]}  Ra6 {[%clk 0:00:06]} 65. Rh1 {[%clk 0:00:06]}  Ra3 {[%clk 0:00:06]} 66. Rh4 {[%clk 0:00:07]}  Kg7 {[%clk 0:00:06]} 67. Rd4 {[%clk 0:00:07]}  Rb3 {[%clk 0:00:07]} 68. Rd7+ {[%clk 0:00:08]}  Kf6 {[%clk 0:00:07]} 69. Kf1 {[%clk 0:00:08]}  Rb2 {[%clk 0:00:07]} 70. Rd6+ {[%clk 0:00:08]}  Kf7 {[%clk 0:00:07]} 71. Ke1 {[%clk 0:00:08]}  Ra2 {[%clk 0:00:07]} 72. Rd2 {[%clk 0:00:09]}  Ra3 {[%clk 0:00:07]} 73. Ke2 {[%clk 0:00:10]}  Rb3 {[%clk 0:00:08]} 74. Rd3 {[%clk 0:00:11]}  Rb4 {[%clk 0:00:08]} 75. Ke3 {[%clk 0:00:12]}  Ra4 {[%clk 0:00:08]} 76. Kf3 {[%clk 0:00:12]}  Rb4 {[%clk 0:00:09]} 77. Re3 {[%clk 0:00:13]}  Kf6 {[%clk 0:00:09]} 78. Re4 {[%clk 0:00:14]}  Rb3+ {[%clk 0:00:09]} 79. Kg4 {[%clk 0:00:14]}  Rb2 {[%clk 0:00:10]} 80. Rf4+ {[%clk 0:00:15]}  Kg7 {[%clk 0:00:10]} 81. Kg5 {[%clk 0:00:15]}  Rb5+ {[%clk 0:00:10]} 82. Kg4 {[%clk 0:00:15]}  Rb2 {[%clk 0:00:11]} 83. f3 {[%clk 0:00:15]}  Rb5 {[%clk 0:00:11]} 84. Re4 {[%clk 0:00:16]}  Kf6 {[%clk 0:00:11]} 85. f4 {[%clk 0:00:15]}  Ra5 {[%clk 0:00:12]} 86. Rc4 {[%clk 0:00:15]}  Rb5 {[%clk 0:00:12]} 87. Rc6+ {[%clk 0:00:15]}  Kf7 {[%clk 0:00:12]} 88. Kh4 {[%clk 0:00:16]}  Ra5 {[%clk 0:00:12]} 89. Rd6 {[%clk 0:00:16]}  Rb5 {[%clk 0:00:12]} 90. Rd7+ {[%clk 0:00:17]}  Kf6 {[%clk 0:00:12]} 91. Rd8 {[%clk 0:00:17]}  Ra5 {[%clk 0:00:12]} 92. Rf8+ {[%clk 0:00:18]}  Kg7 {[%clk 0:00:13]} 93. Re8 {[%clk 0:00:18]}  Kf6 {[%clk 0:00:13]} 94. Kg4 {[%clk 0:00:16]}  Rb5 {[%clk 0:00:11]} 95. Re5 {[%clk 0:00:16]}  Rb3 {[%clk 0:00:10]} 96. Rc5 {[%clk 0:00:14]}  Ra3 {[%clk 0:00:10]} 97. Kh4 {[%clk 0:00:13]}  Rb3 {[%clk 0:00:10]} 98. Rc6+ {[%clk 0:00:13]}  Kg7 {[%clk 0:00:10]} 99. Kg4 {[%clk 0:00:10]}  Rb5 {[%clk 0:00:09]} 100. Kf3 {[%clk 0:00:09]}  Kf7 {[%clk 0:00:09]} 101. Ke4 {[%clk 0:00:09]}  Ra5 {[%clk 0:00:09]} 102. Rc7+ {[%clk 0:00:07]}  Kf6 {[%clk 0:00:09]} 103. Rc6+ {[%clk 0:00:08]}  Kf7 {[%clk 0:00:09]} 104. Rd6 {[%clk 0:00:07]}  Ra3 {[%clk 0:00:09]} 105. g4 {[%clk 0:00:07]}  Ra5 {[%clk 0:00:09]} 106. Kf3 {[%clk 0:00:06]}  Ra3+ {[%clk 0:00:09]} 107. Ke4 {[%clk 0:00:06]}  Ra5 {[%clk 0:00:10]} 108. Kf3 {[%clk 0:00:05]}  Ra3+ {[%clk 0:00:09]} 109. Kf2 {[%clk 0:00:05]}  Rb3 {[%clk 0:00:09]} 110. Kg2 {[%clk 0:00:04]}  Ra3 {[%clk 0:00:09]} 111. Rd5 {[%clk 0:00:04]}  Kf6 {[%clk 0:00:09]} 112. Rd6+ {[%clk 0:00:03]}  Kf7 {[%clk 0:00:09]} 113. Rd7+ {[%clk 0:00:04]}  Kf6 {[%clk 0:00:10]} 114. Rd6+ {[%clk 0:00:03]}  Kf7 {[%clk 0:00:10]} 1/2-1/2


[Site "https://www.chess.com"]

[Event "Titled Tuesday Blitz November 15 Late 2022"]
[White "Liu, Kelsey"]
[Black "Winkels, Marcel"]
[WhiteFideId "30944481"]
[BlackFideId "1003887"]
[WhiteElo "2304"]
[BlackElo "1900"]
[Result "0-1"]
[Round "05"]
[TimeControl "180+1"]
[Date "2022.11.16"]
[WhiteClock "0:00:01"]
[BlackClock "0:01:18"]

1. e4 {[%clk 0:02:53]}  c5 {[%clk 0:02:58]} 2. Nf3 {[%clk 0:02:53]}  d6 {[%clk 0:02:58]} 3. Nc3 {[%clk 0:02:52]}  Nf6 {[%clk 0:02:57]} 4. e5 {[%clk 0:02:52]}  dxe5 {[%clk 0:02:57]} 5. Nxe5 {[%clk 0:02:53]}  Nbd7 {[%clk 0:02:55]} 6. d4 {[%clk 0:02:53]}  Nxe5 {[%clk 0:02:48]} 7. dxe5 {[%clk 0:02:53]}  Qxd1+ {[%clk 0:02:48]} 8. Kxd1 {[%clk 0:02:54]}  Ng4 {[%clk 0:02:47]} 9. Bb5+ {[%clk 0:02:48]}  Bd7 {[%clk 0:02:46]} 10. e6 {[%clk 0:02:48]}  fxe6 {[%clk 0:02:38]} 11. Bxd7+ {[%clk 0:02:32]}  Kxd7 {[%clk 0:02:34]} 12. Ke2 {[%clk 0:02:33]}  g6 {[%clk 0:02:32]} 13. Rd1+ {[%clk 0:02:32]}  Kc6 {[%clk 0:02:30]} 14. f3 {[%clk 0:02:19]}  Nf6 {[%clk 0:02:29]} 15. Kf2 {[%clk 0:02:14]}  Nd5 {[%clk 0:02:27]} 16. Ne4 {[%clk 0:02:12]}  Bg7 {[%clk 0:02:24]} 17. c4 {[%clk 0:02:02]}  Nc7 {[%clk 0:02:19]} 18. Be3 {[%clk 0:01:43]}  b6 {[%clk 0:02:16]} 19. Rab1 {[%clk 0:01:43]}  Rad8 {[%clk 0:02:14]} 20. b3 {[%clk 0:01:28]}  h6 {[%clk 0:02:13]} 21. a4 {[%clk 0:01:13]}  a5 {[%clk 0:02:11]} 22. Ke2 {[%clk 0:01:04]}  Na6 {[%clk 0:02:10]} 23. Rd2 {[%clk 0:00:56]}  Kc7 {[%clk 0:02:05]} 24. Rbd1 {[%clk 0:00:51]}  Rxd2+ {[%clk 0:02:04]} 25. Rxd2 {[%clk 0:00:52]}  Rd8 {[%clk 0:02:03]} 26. Bf4+ {[%clk 0:00:44]}  Kc8 {[%clk 0:02:02]} 27. Nf2 {[%clk 0:00:29]}  Nb4 {[%clk 0:02:00]} 28. Ng4 {[%clk 0:00:27]}  Rxd2+ {[%clk 0:01:55]} 29. Kxd2 {[%clk 0:00:27]}  h5 {[%clk 0:01:52]} 30. Be5 {[%clk 0:00:20]}  hxg4 {[%clk 0:01:42]} 31. Bxg7 {[%clk 0:00:20]}  gxf3 {[%clk 0:01:43]} 32. gxf3 {[%clk 0:00:20]}  Nc6 {[%clk 0:01:42]} 33. Ke3 {[%clk 0:00:19]}  Kd7 {[%clk 0:01:40]} 34. Ke4 {[%clk 0:00:20]}  Kd6 {[%clk 0:01:38]} 35. f4 {[%clk 0:00:16]}  Nd8 {[%clk 0:01:37]} 36. Be5+ {[%clk 0:00:14]}  Kd7 {[%clk 0:01:37]} 37. Bb8 {[%clk 0:00:13]}  Nc6 {[%clk 0:01:36]} 38. Be5 {[%clk 0:00:13]}  Nb4 {[%clk 0:01:36]} 39. Bc3 {[%clk 0:00:11]}  Nc6 {[%clk 0:01:35]} 40. Be5 {[%clk 0:00:11]}  Nd8 {[%clk 0:01:34]} 41. h4 {[%clk 0:00:11]}  Nf7 {[%clk 0:01:34]} 42. Bb8 {[%clk 0:00:09]}  Nh6 {[%clk 0:01:32]} 43. Ba7 {[%clk 0:00:07]}  Kc6 {[%clk 0:01:32]} 44. Bb8 {[%clk 0:00:06]}  Kd7 {[%clk 0:01:32]} 45. Ke5 {[%clk 0:00:05]}  Nf5 {[%clk 0:01:31]} 46. Ba7 {[%clk 0:00:06]}  Kc7 {[%clk 0:01:28]} 47. Kxe6 {[%clk 0:00:01]}  Kb7 {[%clk 0:01:27]} 48. h5 {[%clk 0:00:01]}  Nd4+ {[%clk 0:01:19]} 49. Ke5 {[%clk 0:00:01]}  gxh5 {[%clk 0:01:18]} 0-1


[Site "https://www.chess.com"]

[Event "Titled Tuesday Blitz November 15 Late 2022"]
[White "Madaminov, Mukhiddin"]
[Black "Kuzmicz, Krystian"]
[WhiteFideId "14210703"]
[BlackFideId "1119125"]
[WhiteElo "2341"]
[BlackElo "2380"]
[Result "1-0"]
[Round "05"]
[TimeControl "180+1"]
[Date "2022.11.15"]
[WhiteClock "0:01:29"]
[BlackClock "0:01:12"]

1. d4 {[%clk 0:03:00]}  g6 {[%clk 0:02:59]} 2. Nc3 {[%clk 0:03:00]}  Bg7 {[%clk 0:03:00]} 3. e4 {[%clk 0:03:00]}  a6 {[%clk 0:03:00]} 4. a4 {[%clk 0:02:58]}  d6 {[%clk 0:03:00]} 5. Bc4 {[%clk 0:02:56]}  Nf6 {[%clk 0:02:58]} 6. h3 {[%clk 0:02:55]}  O-O {[%clk 0:02:58]} 7. Nf3 {[%clk 0:02:55]}  c6 {[%clk 0:02:56]} 8. O-O {[%clk 0:02:54]}  Nxe4 {[%clk 0:02:46]} 9. Nxe4 {[%clk 0:02:53]}  d5 {[%clk 0:02:47]} 10. Bd3 {[%clk 0:02:54]}  dxe4 {[%clk 0:02:47]} 11. Bxe4 {[%clk 0:02:55]}  Nd7 {[%clk 0:02:45]} 12. c3 {[%clk 0:02:52]}  e5 {[%clk 0:02:43]} 13. dxe5 {[%clk 0:02:45]}  Nxe5 {[%clk 0:02:43]} 14. a5 {[%clk 0:02:39]}  Qxd1 {[%clk 0:02:39]} 15. Rxd1 {[%clk 0:02:38]}  Nxf3+ {[%clk 0:02:39]} 16. Bxf3 {[%clk 0:02:37]}  Be6 {[%clk 0:02:39]} 17. Be3 {[%clk 0:02:35]}  Rfd8 {[%clk 0:02:34]} 18. Bb6 {[%clk 0:02:34]}  Rxd1+ {[%clk 0:02:33]} 19. Rxd1 {[%clk 0:02:33]}  Bf6 {[%clk 0:02:33]} 20. Kf1 {[%clk 0:02:07]}  Kf8 {[%clk 0:02:32]} 21. Ke2 {[%clk 0:01:57]}  Ke8 {[%clk 0:02:19]} 22. Ke3 {[%clk 0:01:55]}  Bg5+ {[%clk 0:02:16]} 23. Kd4 {[%clk 0:01:54]}  Bf6+ {[%clk 0:02:16]} 24. Kd3 {[%clk 0:01:48]}  Bd8 {[%clk 0:02:11]} 25. Bxd8 {[%clk 0:01:45]}  Rxd8+ {[%clk 0:02:11]} 26. Ke3 {[%clk 0:01:45]}  Rxd1 {[%clk 0:02:06]} 27. Bxd1 {[%clk 0:01:46]}  Ke7 {[%clk 0:02:05]} 28. Kd4 {[%clk 0:01:46]}  Kd6 {[%clk 0:02:05]} 29. b4 {[%clk 0:01:46]}  f6 {[%clk 0:02:04]} 30. h4 {[%clk 0:01:46]}  h6 {[%clk 0:02:02]} 31. f4 {[%clk 0:01:39]}  Bf5 {[%clk 0:01:41]} 32. Bb3 {[%clk 0:01:30]}  g5 {[%clk 0:01:34]} 33. hxg5 {[%clk 0:01:29]}  fxg5 {[%clk 0:01:31]} 34. fxg5 {[%clk 0:01:30]}  hxg5 {[%clk 0:01:31]} 35. Bg8 {[%clk 0:01:30]}  Bb1 {[%clk 0:01:30]} 36. g3 {[%clk 0:01:28]}  Bc2 {[%clk 0:01:30]} 37. c4 {[%clk 0:01:28]}  Bb1 {[%clk 0:01:30]} 38. c5+ {[%clk 0:01:29]}  Ke7 {[%clk 0:01:30]} 39. Ke5 {[%clk 0:01:29]}  Bc2 {[%clk 0:01:29]} 40. Be6 {[%clk 0:01:29]}  Bd3 {[%clk 0:01:12]} 41. Bc8 {[%clk 0:01:28]}  Kd8 {[%clk 0:01:12]} 42. Bf5 {[%clk 0:01:29]} 1-0


[Site "https://www.chess.com"]

[Event "Titled Tuesday Blitz November 15 Late 2022"]
[White "Martinez Reyes, Pedro Ramon"]
[Black "Yoo, Christopher Woojin"]
[WhiteFideId "3901807"]
[BlackFideId "30909694"]
[WhiteElo "2354"]
[BlackElo "2463"]
[Result "0-1"]
[Round "05"]
[TimeControl "180+1"]
[Date "2022.11.16"]
[WhiteClock "0:00:06"]
[BlackClock "0:00:37"]

1. b3 {[%clk 0:03:00]}  Nf6 {[%clk 0:02:58]} 2. Bb2 {[%clk 0:02:56]}  e6 {[%clk 0:02:55]} 3. e3 {[%clk 0:02:56]}  b6 {[%clk 0:02:54]} 4. Nf3 {[%clk 0:02:56]}  Bb7 {[%clk 0:02:54]} 5. Be2 {[%clk 0:02:56]}  Be7 {[%clk 0:02:54]} 6. O-O {[%clk 0:02:57]}  O-O {[%clk 0:02:55]} 7. c4 {[%clk 0:02:57]}  d5 {[%clk 0:02:54]} 8. d4 {[%clk 0:02:51]}  Nbd7 {[%clk 0:02:53]} 9. Nc3 {[%clk 0:02:51]}  c5 {[%clk 0:02:53]} 10. Rc1 {[%clk 0:02:48]}  Rc8 {[%clk 0:02:50]} 11. h3 {[%clk 0:02:48]}  a6 {[%clk 0:02:14]} 12. cxd5 {[%clk 0:02:46]}  exd5 {[%clk 0:02:13]} 13. Qc2 {[%clk 0:02:40]}  b5 {[%clk 0:01:59]} 14. dxc5 {[%clk 0:02:34]}  Nxc5 {[%clk 0:01:58]} 15. Qf5 {[%clk 0:02:07]}  g6 {[%clk 0:01:40]} 16. Qf4 {[%clk 0:02:02]}  Nh5 {[%clk 0:01:39]} 17. Qh6 {[%clk 0:01:47]}  Bf6 {[%clk 0:01:37]} 18. Rfd1 {[%clk 0:00:55]}  Ne6 {[%clk 0:01:26]} 19. e4 {[%clk 0:00:16]}  Nef4 {[%clk 0:01:06]} 20. Nxd5 {[%clk 0:00:14]}  Nxe2+ {[%clk 0:00:48]} 21. Kh1 {[%clk 0:00:12]}  Bxd5 {[%clk 0:00:42]} 22. Ng5 {[%clk 0:00:12]}  Bxg5 {[%clk 0:00:41]} 23. Rxc8 {[%clk 0:00:09]}  Bxh6 {[%clk 0:00:41]} 24. Rxd8 {[%clk 0:00:09]}  Rxd8 {[%clk 0:00:41]} 25. exd5 {[%clk 0:00:07]}  b4 {[%clk 0:00:39]} 26. g3 {[%clk 0:00:07]}  Nc3 {[%clk 0:00:39]} 27. Rd3 {[%clk 0:00:06]}  Rxd5 {[%clk 0:00:37]} 0-1


[Site "https://www.chess.com"]